fUSD/lending_fUSD_20251122
["ID","MTS","AMOUNT","RATE_DAILY","PERIOD"]
[394646537,1763806330970,-505.12,0.00021369,2]
[394646538,1763806330979,-559.83,0.00021369,2]
[394646539,1763806330989,-500.0,0.00021369,2]
[394646540,1763806330998,-1055.95,0.00021369,2]
[394646541,1763806331009,-1463.02,0.00021369,2]
[394646542,1763806331024,-521.42,0.00021369,2]
[394646543,1763806331046,-733.24,0.00021369,2]
[394646544,1763806331065,-782.33,0.00021369,2]
[394646545,1763806331086,-734.36,0.00021369,2]
[394646546,1763806331103,-839.69,0.00021369,2]
[394646547,1763806331128,-500.0,0.00021369,2]
[394646548,1763806331147,-385.96030486,0.00021369,2]
[394646549,1763806331168,-1249.82,0.00021369,2]
[394646550,1763806331187,-1049.8,0.00021369,2]
[394646551,1763806331210,-523.31,0.00021369,2]
[394646552,1763806331231,-1579.91,0.00021369,2]
[394646553,1763806331248,-532.69,0.00021369,2]
[394646554,1763806331264,-570.72,0.00021369,2]
[394646555,1763806331282,-515.86,0.00021369,2]
[394646556,1763806331300,-1073.42,0.00021369,2]
[394646557,1763806331319,-1688.87,0.00021369,2]
[394646558,1763806331339,-602.73,0.00021369,2]
[394646559,1763806331358,-786.03,0.00021369,2]
[394646560,1763806331373,-500.0,0.00021369,2]
[394646561,1763806331394,-1309.89,0.00021369,2]
[394646562,1763806331414,-500.0,0.00021369,2]
[394646563,1763806331432,-500.0,0.00021369,2]
[394646564,1763806331451,-500.0,0.00021369,2]
[394646565,1763806331468,-919.35,0.00021369,2]
[394646566,1763806331485,-606.55,0.00021369,2]
[394646567,1763806331502,-523.55,0.00021369,2]
[394646568,1763806331518,-816.25,0.00021369,2]
[394646569,1763806331535,-1202.89,0.00021369,2]
[394646570,1763806331551,-696.52,0.00021369,2]
[394646571,1763806331567,-532.1,0.00021369,2]
[394646572,1763806331584,-1008.12,0.00021369,2]
[394646573,1763806331599,-771.55,0.00021369,2]
[394646574,1763806331625,-682.29,0.00021369,2]
[394646575,1763806331645,-597.76,0.00021369,2]
[394646576,1763806331666,-2185.15,0.00021369,2]
[394646577,1763806331685,-935.0,0.00021369,2]
[394646578,1763806331705,-561.06,0.00021369,2]
[394646579,1763806331722,-558.65,0.00021369,2]
[394646580,1763806331741,-1048.65,0.00021369,2]
[394646581,1763806331762,-517.79,0.00021369,2]
[394646582,1763806331782,-500.0,0.00021369,2]
[394646583,1763806331800,-1090.24,0.00021369,2]
[394646584,1763806331816,-776.75,0.00021369,2]
[394646585,1763806331833,-595.92,0.00021369,2]
[394646586,1763806331851,-2164.02,0.00021369,2]
[394646587,1763806331868,-500.0,0.00021369,2]
[394646588,1763806331885,-500.0,0.00021369,2]
[394646589,1763806331902,-655.49,0.00021369,2]
[394646590,1763806331918,-1677.03,0.00021369,2]
[394646591,1763806331934,-7021.18,0.00021369,2]
[394646592,1763806331951,-786.49,0.00021369,2]
[394646593,1763806331972,-696.44,0.00021369,2]
[394646594,1763806331989,-1780.25,0.00021369,2]
[394646595,1763806332006,-557.18,0.00021369,2]
[394646596,1763806332023,-987.68,0.00021369,2]
[394646597,1763806332041,-1070.85,0.00021369,2]
[394646598,1763806332056,-672.12,0.00021369,2]
[394646599,1763806332072,-702.43,0.00021369,2]
[394646600,1763806332089,-628.98,0.00021369,2]
[394646601,1763806332104,-586.32,0.00021369,2]
[394646602,1763806332119,-500.0,0.00021369,2]
[394646603,1763806332135,-1078.17,0.00021369,2]
[394646604,1763806332151,-557.34,0.00021369,2]
[394646605,1763806332167,-500.0,0.00021369,2]
[394646606,1763806332182,-500.0,0.00021369,2]
[394646607,1763806332198,-1073.87,0.00021369,2]
[394646608,1763806332214,-631.15,0.00021369,2]
[394646609,1763806332230,-503.62,0.00021369,2]
[394646610,1763806332246,-500.0,0.00021369,2]
[394646611,1763806332261,-881.11,0.00021369,2]
[394646612,1763806332277,-5846.52,0.00021369,2]
[394646613,1763806332292,-729.49,0.00021369,2]
[394646614,1763806332313,-3727.77,0.00021369,2]
[394646615,1763806332328,-500.0,0.00021369,2]
[394646616,1763806332345,-4450.71,0.00021369,2]
[394646617,1763806332361,-867.82,0.00021369,2]
[394646618,1763806332376,-500.0,0.00021369,2]
[394646619,1763806332395,-674.27,0.00021369,2]
[394646620,1763806332410,-673.15,0.00021369,2]
[394646621,1763806332426,-1064.84,0.00021369,2]
[394646622,1763806332441,-978.13,0.00021369,2]
[394646623,1763806332456,-1344.66,0.00021369,2]
[394646624,1763806332472,-651.06,0.00021369,2]
[394646625,1763806332488,-835.55,0.00021369,2]
[394646626,1763806332502,-776.5,0.00021369,2]
[394646627,1763806332517,-567.01,0.00021369,2]
[394646628,1763806332532,-662.91,0.00021369,2]
[394646629,1763806332548,-500.0,0.00021369,2]
[394646630,1763806332563,-765.48,0.00021369,2]
[394646631,1763806332580,-819.38,0.00021369,2]
[394646632,1763806332596,-577.58,0.00021369,2]
[394646633,1763806332610,-2977.14,0.00021369,2]
[394646634,1763806332626,-994.62,0.00021369,2]
[394646635,1763806332641,-600.0,0.0002137,2]
[394646636,1763806332657,-300.0,0.00021381,2]
[394646637,1763806332675,-300.0,0.0002139,2]
[394646638,1763806332690,-300.0,0.00021392,2]
[394646639,1763806332705,-300.0,0.00021403,2]
[394646640,1763806332721,-315.65870945,0.00021418,2]
[394646641,1763806332738,-300.0,0.00021438,2]
[394646642,1763806332753,-300.0,0.00021443,2]
[394646643,1763806332772,-300.0,0.00021445,2]
[394646644,1763806332787,-300.0,0.00021448,2]
[394646645,1763806332805,-300.0,0.00021449,2]
[394646646,1763806332827,-800.0,0.00021452,2]
[394646647,1763806332844,-300.0,0.00021468,2]
[394646648,1763806332859,-300.0,0.00021478,2]
[394646649,1763806332875,-300.0,0.00021485,2]
[394646650,1763806332891,-300.0,0.00021486,2]
[394646651,1763806332907,-300.0,0.00021495,2]
[394646652,1763806332926,-300.0,0.00021505,2]
[394646653,1763806332942,-300.0,0.00021508,2]
[394646654,1763806332957,-300.0,0.00021508,2]
[394646655,1763806332973,-300.0,0.00021516,2]
[394646656,1763806332989,-300.0,0.00021516,2]
[394646657,1763806333004,-300.0,0.00021537,2]
[394646658,1763806333020,-300.0,0.00021545,2]
[394646659,1763806333036,-300.0,0.00021568,2]
[394646660,1763806333053,-300.0,0.00021573,2]
[394646661,1763806333069,-300.0,0.00021578,2]
[394646662,1763806333084,-300.0,0.00021585,2]
[394646663,1763806333099,-300.0,0.00021586,2]
[394646664,1763806333115,-300.0,0.00021604,2]
[394646665,1763806333132,-300.0,0.0002161,2]
[394646666,1763806333148,-300.0,0.00021615,2]
[394646667,1763806333430,-300.0,0.00021618,2]
[394646668,1763806333440,-300.0,0.0002163,2]
[394646669,1763806333449,-300.0,0.00021635,2]
[394646670,1763806333459,-300.0,0.00021641,2]
[394646671,1763806333468,-867.5,0.00021643,2]
[394646672,1763806333478,-500.0,0.00021643,2]
[394646673,1763806333487,-643.22,0.00021643,2]
[394646674,1763806333496,-843.09,0.00021643,2]
[394646675,1763806333504,-664.19,0.00021643,2]
[394646676,1763806333513,-579.49,0.00021643,2]
[394646677,1763806333522,-944.02,0.00021643,2]
[394646678,1763806333531,-500.0,0.00021643,2]
[394646679,1763806333541,-781.7,0.00021643,2]
[394646680,1763806333551,-500.0,0.00021643,2]
[394646681,1763806333560,-754.3,0.00021643,2]
[394646682,1763806333569,-826.89,0.00021643,2]
[394646683,1763806333580,-760.07,0.00021643,2]
[394646684,1763806333592,-660.25,0.00021643,2]
[394646685,1763806333601,-620.59,0.00021643,2]
[394646686,1763806333613,-718.76,0.00021643,2]
[394646687,1763806333624,-589.29,0.00021643,2]
[394646688,1763806333634,-523.48,0.00021643,2]
[394646689,1763806333644,-500.0,0.00021643,2]
[394646690,1763806333653,-1151.27,0.00021643,2]
[394646691,1763806333662,-539.63,0.00021643,2]
[394646692,1763806333673,-943.25,0.00021643,2]
[394646693,1763806333682,-532.89,0.00021643,2]
[394646694,1763806333692,-717.92,0.00021643,2]
[394646695,1763806333701,-791.9,0.00021643,2]
[394646696,1763806333710,-671.16,0.00021643,2]
[394646697,1763806333720,-513.69,0.00021643,2]
[394646698,1763806333729,-718.46,0.00021643,2]
[394646699,1763806333739,-903.01,0.00021643,2]
[394646700,1763806333748,-619.27,0.00021643,2]
[394646701,1763806333758,-633.07,0.00021643,2]
[394646702,1763806333772,-512.4,0.00021643,2]
[394646703,1763806333782,-734.0,0.00021643,2]
[394646704,1763806333791,-686.05,0.00021643,2]
[394646705,1763806333802,-689.73,0.00021643,2]
[394646706,1763806333811,-515.09,0.00021643,2]
[394646707,1763806333820,-909.79,0.00021643,2]
[394646708,1763806333829,-534.13,0.00021643,2]
[394646709,1763806333841,-987.88,0.00021643,2]
[394646710,1763806333851,-1118.33,0.00021643,2]
[394646711,1763806333861,-593.96,0.00021643,2]
[394646712,1763806333870,-532.39,0.00021643,2]
[394646713,1763806333891,-504.84164983,0.00021643,2]
[394646714,1763806333900,-500.0,0.00021643,2]
[394646715,1763806333909,-500.0,0.00021643,2]
[394646716,1763806333920,-500.0,0.00021643,2]
[394646717,1763806333930,-643.4,0.00021643,2]
[394646718,1763806333940,-745.16,0.00021643,2]
[394646719,1763806333949,-760.48,0.00021643,2]
[394646720,1763806333960,-660.26,0.00021643,2]
[394646721,1763806333970,-643.35,0.00021643,2]
[394646722,1763806333979,-536.96,0.00021643,2]
[394646723,1763806333989,-561.03,0.00021643,2]
[394646724,1763806333999,-667.06,0.00021643,2]
[394646725,1763806334008,-500.0,0.00021643,2]
[394646726,1763806334018,-840.36,0.00021643,2]
[394646727,1763806334027,-588.85,0.00021643,2]
[394646728,1763806334037,-527.44,0.00021643,2]
[394646729,1763806334047,-500.0,0.00021643,2]
[394646730,1763806334056,-1117.89,0.00021643,2]
[394646731,1763806334065,-500.0,0.00021643,2]
[394646732,1763806334075,-761.79,0.00021643,2]
[394646733,1763806334085,-620.55,0.00021643,2]
[394646734,1763806334094,-593.36,0.00021643,2]
[394646735,1763806334104,-676.83,0.00021643,2]
[394646736,1763806334113,-900.44,0.00021643,2]
[394646737,1763806334123,-1015.0,0.00021643,2]
[394646738,1763806334132,-588.06,0.00021643,2]
[394646739,1763806334141,-511.04,0.00021643,2]
[394646740,1763806334151,-628.45101575,0.00021643,2]
[394646741,1763806334160,-1144.77,0.00021643,2]
[394646742,1763806334171,-787.96,0.00021643,2]
[394646743,1763806334180,-865.95,0.00021643,2]
[394646744,1763806334190,-592.3,0.00021643,2]
[394646745,1763806334199,-540.6,0.00021643,2]
[394646746,1763806334208,-790.49,0.00021643,2]
[394646747,1763806334218,-580.1,0.00021643,2]
[394646748,1763806334227,-500.0,0.00021643,2]
[394646749,1763806334236,-766.2,0.00021643,2]
[394646750,1763806334246,-557.29,0.00021643,2]
[394646751,1763806334256,-329.6990444,0.00021643,2]
[394646752,1763806334266,-637.13,0.00021643,2]
[394646753,1763806334275,-1511.77,0.00021643,2]
[394646754,1763806334285,-699.88,0.00021643,2]
[394646755,1763806334295,-705.23,0.00021643,2]
[394646756,1763806334304,-768.25,0.00021643,2]
[394646757,1763806334314,-561.04,0.00021643,2]
[394646758,1763806334323,-681.07,0.00021643,2]
[394646759,1763806334333,-889.28,0.00021643,2]
[394646760,1763806334342,-500.0,0.00021643,2]
[394646761,1763806334352,-500.0,0.00021643,2]
[394646762,1763806334362,-910.7,0.00021643,2]
[394646763,1763806334371,-581.69,0.00021643,2]
[394646764,1763806334382,-681.0,0.00021643,2]
[394646765,1763806334391,-500.0,0.00021643,2]
[394646766,1763806334401,-561.58,0.00021643,2]
[394646767,1763806334410,-520.44,0.00021643,2]
[394646768,1763806334420,-892.07,0.00021643,2]
[394646769,1763806334430,-648.76,0.00021643,2]
[394646770,1763806334440,-540.37,0.00021643,2]
[394646771,1763806334450,-500.0,0.00021643,2]
[394646772,1763806334459,-500.0,0.00021643,2]
[394646773,1763806334469,-680.96,0.00021643,2]
[394646774,1763806334478,-1478.21,0.00021643,2]
[394646775,1763806334487,-685.91,0.00021643,2]
[394646776,1763806334497,-778.77,0.00021643,2]
[394646777,1763806334507,-714.38,0.00021643,2]
[394646778,1763806334516,-758.68,0.00021643,2]
[394646779,1763806334525,-745.24,0.00021643,2]
[394646780,1763806334535,-758.78,0.00021643,2]
[394646781,1763806334544,-1003.75,0.00021643,2]
[394646782,1763806334553,-500.0,0.00021643,2]
[394646783,1763806334563,-156.49838785,0.00021643,2]
[394646784,1763806334572,-306.83769924,0.00021643,2]
[394646785,1763806334582,-753.49,0.00021643,2]
[394646786,1763806334591,-697.04,0.00021643,2]
[394646787,1763806334600,-595.07,0.00021643,2]
[394646788,1763806334610,-892.51,0.00021643,2]
[394646789,1763806334619,-507.73,0.00021643,2]
[394646790,1763806334628,-500.0,0.00021643,2]
[394646791,1763806334638,-817.08,0.00021643,2]
[394646792,1763806334647,-500.0,0.00021643,2]
[394646793,1763806334656,-598.13,0.00021643,2]
[394646794,1763806334666,-500.0,0.00021643,2]
[394646795,1763806334676,-683.96,0.00021643,2]
[394646796,1763806334685,-724.4,0.00021643,2]
[394646797,1763806334695,-700.99,0.00021643,2]
[394646798,1763806334704,-506.6,0.00021643,2]
[394646799,1763806334713,-830.04,0.00021643,2]
[394646800,1763806334722,-509.8,0.00021643,2]
[394646801,1763806334732,-645.82,0.00021643,2]
[394646802,1763806334741,-434.25876447,0.00021643,2]
[394646803,1763806334752,-651.49,0.00021643,2]
[394646804,1763806334763,-500.0,0.00021643,2]
[394646805,1763806334777,-680.93,0.00021643,2]
[394646806,1763806334787,-950.5,0.00021643,2]
[394646807,1763806334798,-583.5893643,0.00021643,2]
[394646808,1763806334807,-768.8,0.00021643,2]
[394646809,1763806334820,-1163.93,0.00021643,2]
[394646810,1763806334830,-938.85,0.00021643,2]
[394646811,1763806334839,-170.90908281,0.00021643,2]
[394646812,1763806334849,-816.31,0.00021643,2]
[394646813,1763806334860,-500.0,0.00021643,2]
[394646814,1763806334870,-695.83,0.00021643,2]
[394646815,1763806334881,-309.47476824,0.00021643,2]
[394646816,1763806334892,-1025.64,0.00021643,2]
[394646817,1763806334902,-692.67,0.00021643,2]
[394646818,1763806334911,-970.47,0.00021643,2]
[394646819,1763806334922,-5173.16,0.00021643,2]
[394646820,1763806334932,-500.0,0.00021643,2]
[394646821,1763806334944,-974.11,0.00021643,2]
[394646822,1763806334954,-500.0,0.00021643,2]
[394646823,1763806334964,-500.0,0.00021643,2]
[394646824,1763806334975,-500.0,0.00021643,2]
[394646825,1763806334987,-942.8,0.00021643,2]
[394646826,1763806334996,-1130.33,0.00021643,2]
[394646827,1763806335007,-2544.87,0.00021643,2]
[394646828,1763806335017,-804.3,0.00021643,2]
[394646829,1763806335028,-674.23,0.00021643,2]
[394646830,1763806335038,-1191.45,0.00021643,2]
[394646831,1763806335047,-585.41,0.00021643,2]
[394646832,1763806335058,-839.14,0.00021643,2]
[394646833,1763806335067,-564.02,0.00021643,2]
[394646834,1763806335077,-505.12,0.00021643,2]
[394646835,1763806335086,-559.83,0.00021643,2]
[394646836,1763806335096,-500.0,0.00021643,2]
[394646837,1763806335108,-1055.95,0.00021643,2]
[394646838,1763806335118,-1463.02,0.00021643,2]
[394646839,1763806335129,-521.42,0.00021643,2]
[394646840,1763806335139,-733.24,0.00021643,2]
[394646841,1763806335148,-782.33,0.00021643,2]
[394646842,1763806335158,-734.36,0.00021643,2]
[394646843,1763806335168,-839.69,0.00021643,2]
[394646844,1763806335177,-500.0,0.00021643,2]
[394646845,1763806335187,-1249.82,0.00021643,2]
[394646846,1763806335200,-1049.8,0.00021643,2]
[394646847,1763806335209,-523.31,0.00021643,2]
[394646848,1763806335220,-1579.91,0.00021643,2]
[394646849,1763806335229,-532.69,0.00021643,2]
[394646850,1763806335239,-570.72,0.00021643,2]
[394646851,1763806335249,-515.86,0.00021643,2]
[394646852,1763806335258,-1073.42,0.00021643,2]
[394646853,1763806335269,-1688.87,0.00021643,2]
[394646854,1763806335279,-602.73,0.00021643,2]
[394646855,1763806335289,-786.03,0.00021643,2]
[394646856,1763806335299,-500.0,0.00021643,2]
[394646857,1763806335310,-1309.89,0.00021643,2]
[394646858,1763806335319,-500.0,0.00021643,2]
[394646859,1763806335329,-500.0,0.00021643,2]
[394646860,1763806335339,-500.0,0.00021643,2]
[394646861,1763806335349,-919.35,0.00021643,2]
[394646862,1763806335360,-606.55,0.00021643,2]
[394646863,1763806335371,-523.55,0.00021643,2]
[394646864,1763806335380,-816.25,0.00021643,2]
[394646865,1763806335391,-1202.89,0.00021643,2]
[394646866,1763806335403,-696.52,0.00021643,2]
[394646867,1763806335412,-532.1,0.00021643,2]
[394646868,1763806335424,-1008.12,0.00021643,2]
[394646869,1763806335434,-771.55,0.00021643,2]
[394646870,1763806335444,-682.29,0.00021643,2]
[394646871,1763806335453,-597.76,0.00021643,2]
[394646872,1763806335463,-2185.15,0.00021643,2]
[394646873,1763806335474,-935.0,0.00021643,2]
[394646874,1763806335484,-561.06,0.00021643,2]
[394646875,1763806335496,-558.65,0.00021643,2]
[394646876,1763806335506,-1048.65,0.00021643,2]
[394646877,1763806335516,-517.79,0.00021643,2]
[394646878,1763806335525,-500.0,0.00021643,2]
[394646879,1763806335535,-1090.24,0.00021643,2]
[394646880,1763806335544,-776.75,0.00021643,2]
[394646881,1763806335554,-595.92,0.00021643,2]
[394646882,1763806335563,-2164.02,0.00021643,2]
[394646883,1763806335574,-500.0,0.00021643,2]
[394646884,1763806335585,-500.0,0.00021643,2]
[394646885,1763806335594,-655.49,0.00021643,2]
[394646886,1763806335603,-1677.03,0.00021643,2]
[394646887,1763806335613,-7021.18,0.00021643,2]
[394646888,1763806335623,-786.49,0.00021643,2]
[394646889,1763806335633,-696.44,0.00021643,2]
[394646890,1763806335643,-1780.25,0.00021643,2]
[394646891,1763806335653,-557.18,0.00021643,2]
[394646892,1763806335662,-987.68,0.00021643,2]
[394646893,1763806335672,-1070.85,0.00021643,2]
[394646894,1763806335682,-672.12,0.00021643,2]
[394646895,1763806335692,-702.43,0.00021643,2]
[394646896,1763806335701,-628.98,0.00021643,2]
[394646897,1763806335712,-586.32,0.00021643,2]
[394646898,1763806335722,-500.0,0.00021643,2]
[394646899,1763806335732,-1078.17,0.00021643,2]
[394646900,1763806335742,-557.34,0.00021643,2]
[394646901,1763806335756,-310.0628512,0.00021643,2]
[394646902,1763806335770,-500.0,0.00021643,2]
[394646903,1763806335780,-1073.87,0.00021643,2]
[394646904,1763806335791,-631.15,0.00021643,2]
[394646905,1763806335802,-503.62,0.00021643,2]
[394646906,1763806335812,-500.0,0.00021643,2]
[394646907,1763806335824,-881.11,0.00021643,2]
[394646908,1763806335836,-5846.52,0.00021643,2]
[394646909,1763806335846,-729.49,0.00021643,2]
[394646910,1763806335856,-3727.77,0.00021643,2]
[394646911,1763806335866,-500.0,0.00021643,2]
[394646912,1763806335876,-4450.71,0.00021643,2]
[394646913,1763806335886,-867.82,0.00021643,2]
[394646914,1763806335897,-578.99170067,0.00021643,2]
[394646915,1763806335909,-674.27,0.00021643,2]
[394646916,1763806335921,-673.15,0.00021643,2]
[394646917,1763806335932,-1064.84,0.00021643,2]
[394646918,1763806335944,-978.13,0.00021643,2]
[394646919,1763806335955,-1344.66,0.00021643,2]
[394646920,1763806335968,-651.06,0.00021643,2]
[394646921,1763806335980,-835.55,0.00021643,2]
[394646922,1763806335992,-776.5,0.00021643,2]
[394646923,1763806336003,-567.01,0.00021643,2]
[394646924,1763806336015,-662.91,0.00021643,2]
[394646925,1763806336027,-500.0,0.00021643,2]
[394646926,1763806336040,-765.48,0.00021643,2]
[394646927,1763806336052,-819.38,0.00021643,2]
[394646928,1763806336062,-577.58,0.00021643,2]
[394646929,1763806336075,-2977.14,0.00021643,2]
[394646930,1763806336088,-994.62,0.00021643,2]
[394646931,1763806336099,-600.0,0.00021644,2]
[394646932,1763806336110,-300.0,0.00021654,2]
[394646933,1763806336122,-300.0,0.00021679,2]
[394646934,1763806336132,-300.0,0.00021689,2]
[394646935,1763806336143,-300.0,0.00021697,2]
[394646936,1763806336153,-300.0,0.00021705,2]
[394646937,1763806336163,-300.0,0.00021732,2]
[394646938,1763806336176,-300.0,0.00021744,2]
[394646939,1763806336185,-300.0,0.0002175,2]
[394646940,1763806336196,-300.0,0.00021752,2]
[394646941,1763806336206,-667.01,0.00021757,2]
[394646942,1763806336217,-300.0,0.00021775,2]
[394646943,1763806336228,-300.0,0.00021777,2]
[394646944,1763806336238,-158249.75642638,0.0002178,2]
[394646945,1763806336249,-300.0,0.0002178,2]
[394646946,1763806336258,-300.0,0.00021781,2]
[394646947,1763806336268,-300.0,0.00021785,2]
[394646948,1763806336278,-300.0,0.00021796,2]
[394646949,1763806336288,-300.0,0.00021801,2]
[394646950,1763806336297,-300.0,0.00021813,2]
[394646951,1763806336307,-300.0,0.00021816,2]
[394646952,1763806336318,-300.0,0.00021825,2]
[394646953,1763806336328,-300.0,0.00021831,2]
[394646954,1763806336338,-300.0,0.0002184,2]
[394646955,1763806336347,-300.0,0.00021841,2]
[394646956,1763806336357,-300.0,0.0002185,2]
[394646957,1763806336366,-300.0,0.00021864,2]
[394646958,1763806336377,-300.0,0.00021878,2]
[394646959,1763806336387,-300.0,0.00021885,2]
[394646960,1763806336396,-2000.0,0.0002189,2]
[394646961,1763806336406,-2000.8131,0.0002189,2]
[394646962,1763806336416,-2000.0,0.0002189,2]
[394646963,1763806336427,-2000.0,0.0002189,2]
[394646964,1763806336437,-300.0,0.00021908,2]
[394646965,1763806336447,-300.0,0.0002191,2]
[394646966,1763806336457,-300.0,0.00021912,2]
[394646967,1763806336467,-867.5,0.00021917,2]
[394646968,1763806336477,-500.0,0.00021917,2]
[394646969,1763806336487,-643.22,0.00021917,2]
[394646970,1763806336499,-843.09,0.00021917,2]
[394646971,1763806336509,-664.19,0.00021917,2]
[394646972,1763806336519,-579.49,0.00021917,2]
[394646973,1763806336534,-944.02,0.00021917,2]
[394646974,1763806336544,-500.0,0.00021917,2]
[394646975,1763806336554,-781.7,0.00021917,2]
[394646976,1763806336565,-500.0,0.00021917,2]
[394646977,1763806336574,-754.3,0.00021917,2]
[394646978,1763806336584,-826.89,0.00021917,2]
[394646979,1763806336597,-760.07,0.00021917,2]
[394646980,1763806336607,-660.25,0.00021917,2]
[394646981,1763806336616,-620.59,0.00021917,2]
[394646982,1763806336626,-718.76,0.00021917,2]
[394646983,1763806336635,-589.29,0.00021917,2]
[394646984,1763806336645,-523.48,0.00021917,2]
[394646985,1763806336655,-500.0,0.00021917,2]
[394646986,1763806336665,-1151.27,0.00021917,2]
[394646987,1763806336676,-539.63,0.00021917,2]
[394646988,1763806336686,-943.25,0.00021917,2]
[394646989,1763806336696,-532.89,0.00021917,2]
[394646990,1763806336706,-717.92,0.00021917,2]
[394646991,1763806336716,-791.9,0.00021917,2]
[394646992,1763806336726,-671.16,0.00021917,2]
[394646993,1763806336736,-513.69,0.00021917,2]
[394646994,1763806336746,-718.46,0.00021917,2]
[394646995,1763806336756,-903.01,0.00021917,2]
[394646996,1763806336767,-619.27,0.00021917,2]
[394646997,1763806336778,-633.07,0.00021917,2]
[394646998,1763806336788,-512.4,0.00021917,2]
[394646999,1763806337035,-734.0,0.00021917,2]
[394647000,1763806337052,-686.05,0.00021917,2]
[394647001,1763806337061,-689.73,0.00021917,2]
[394647002,1763806337072,-515.09,0.00021917,2]
[394647003,1763806337082,-909.79,0.00021917,2]
[394647004,1763806337091,-534.13,0.00021917,2]
[394647005,1763806337103,-987.88,0.00021917,2]
[394647006,1763806337114,-1118.33,0.00021917,2]
[394647007,1763806337124,-593.96,0.00021917,2]
[394647008,1763806337135,-532.39,0.00021917,2]
[394647009,1763806337144,-500.0,0.00021917,2]
[394647010,1763806337153,-500.0,0.00021917,2]
[394647011,1763806337163,-500.0,0.00021917,2]
[394647012,1763806337172,-643.4,0.00021917,2]
[394647013,1763806337182,-745.16,0.00021917,2]
[394647014,1763806337191,-760.48,0.00021917,2]
[394647015,1763806337200,-660.26,0.00021917,2]
[394647016,1763806337209,-643.35,0.00021917,2]
[394647017,1763806337222,-536.96,0.00021917,2]
[394647018,1763806337231,-561.03,0.00021917,2]
[394647019,1763806337240,-667.06,0.00021917,2]
[394647020,1763806337250,-500.0,0.00021917,2]
[394647021,1763806337259,-840.36,0.00021917,2]
[394647022,1763806337268,-588.85,0.00021917,2]
[394647023,1763806337277,-527.44,0.00021917,2]
[394647024,1763806337286,-500.0,0.00021917,2]
[394647025,1763806337295,-1117.89,0.00021917,2]
[394647026,1763806337304,-500.0,0.00021917,2]
[394647027,1763806337313,-761.79,0.00021917,2]
[394647028,1763806337322,-593.36,0.00021917,2]
[394647029,1763806337331,-620.55,0.00021917,2]
[394647030,1763806337340,-676.83,0.00021917,2]
[394647031,1763806337349,-900.44,0.00021917,2]
[394647032,1763806337359,-1015.0,0.00021917,2]
[394647033,1763806337367,-588.06,0.00021917,2]
[394647034,1763806337376,-511.04,0.00021917,2]
[394647035,1763806337386,-1144.77,0.00021917,2]
[394647036,1763806337395,-787.96,0.00021917,2]